[Event "DVM U14 2021"]
[Site "Willingen"]
[Date "2022.08.14"]
[Round "3"]
[White "Pichl, Christoph"]
[Black "Kommessin, Felix"]
[Result "1-0"]
[ECO "D00"]
[WhiteElo "1617"]
[BlackElo "1536"]
[Annotator "NA RC"]
[PlyCount "97"]
[EventDate "2022.08.12"]
[EventType "team-tourn"]
[EventRounds "7"]
[EventCountry "GER"]
[SourceTitle "playchess.com"]
[Source "ChessBase"]
[SourceQuality "1"]
[TimeControl "40/5400+30:1800+30"]

1. d4 {[%emt 0:17:59]} d5 {[%emt 0:00:05]} 2. Bf4 {[%emt 0:00:10]} Nf6 {[%emt 0:00:04]} 3. e3 {[%emt 0:00:10]} c5 {[%emt 0:00:09]} 4. c3 {[%emt 0:00:31]} Nc6 {[%emt 0:00:32]} 5. Bd3 {[%emt 0:00:18]} Bg4 {[%emt 0:10:31]} 6. Nf3 {[%emt 0:03:59]} Qb6 {[%emt 0:14:13]} 7. Qc2 {[%emt 0:02:05]} e6 {[%emt 0:15:02]} 8. Nbd2 {[%emt 0:00:29]} Be7 {[%emt 0:01:58]} 9. h3 {[%emt 0:01:23]} Bh5 {[%emt 0:08:48]} 10. O-O {[%emt 0:01:53]} O-O {[%emt 0:01:55]} 11. Ne5 {[%emt 0:00:38]} Rfc8 {[%emt 0:12:39]} 12. Ndf3 {[%emt 0:03:03]} Bxf3 {[%emt 0:09:27]} 13. Nxf3 {[%emt 0:00:15]} cxd4 {[%emt 0:00:12]} 14. exd4 {[%emt 0:00:24]} Nb4 {[%emt 0:00:44]} 15. Qe2 {[%emt 0:02:11]} Nxd3 {[%emt 0:00:10]} 16. Qxd3 {[%emt 0:00:06]} Qxb2 {[%emt 0:00:05]} 17. Rfb1 {[%emt 0:02:47]} Qxc3 {[%emt 0:00:52]} 18. Qxc3 {[%emt 0:00:13]} Rxc3 {[%emt 0:00:08]} 19. Rxb7 {[%emt 0:00:09]} Kf8 {[%emt 0:12:55]} 20. Ne5 {[%emt 0:07:14]} Ke8 {[%emt 0:05:47]} 21. Bd2 {[%emt 0:04:19]} Rcc8 {[%emt 0:00:41]} 22. Rab1 {[%emt 0:00:52]} Ne4 {[%emt 0:01:15]} 23. Ba5 {[%emt 0:02:11]} Nd6 {[%emt 0:01:04]} 24. R7b3 {[%emt 0:16:45]} f6 {[%emt 0:00:41]} 25. Nf3 {[%emt 0:00:28]} Bd8 {[%emt 0:00:25]} 26. Bb4 {[%emt 0:04:21]} Be7 {[%emt 0:00:12]} 27. Bc5 {[%emt 0:11:37]} a6 {[%emt 0:01:31]} 28. Rb6 {[%emt 0:02:35]} Nc4 {[%emt 0:00:40]} 29. Rxe6 {[%emt 0:00:08]} Rc7 {[%emt 0:00:24]} 30. Rbe1 {[%emt 0:01:36]} Kf8 {[%emt 0:01:31]} 31. Rxe7 {[%emt 0:00:43]} Rxe7 {[%emt 0:00:06]} 32. Rxe7 {[%emt 0:00:06]} Kg8 {[%emt 0:00:04]} 33. Rd7 {[%emt 0:00:14]} a5 {[%emt 0:00:51]} 34. Rxd5 {[%emt 0:01:27]} Nb2 {[%emt 0:00:25]} 35. Rd7 {[%emt 0:00:44]} Na4 {[%emt 0:00:17]} 36. Ra7 {[%emt 0:00:25]} Rxa7 {[%emt 0:00:19]} 37. Bxa7 {[%emt 0:00:08]} Nc3 {[%emt 0:00:07]} 38. a3 {[%emt 0:00:09]} a4 {[%emt 0:00:07]} 39. Kf1 {[%emt 0:00:43]} Kf7 {[%emt 0:00:14]} 40. Ke1 {[%emt 0:01:14]} Ke6 {[%emt 0:00:07]} 41. Bc5 {[%emt 0:30:25]} g6 {[%emt 0:30:43]} 42. Kd2 {[%emt 0:01:00]} Ne4+ {[%emt 0:00:12]} 43. Ke3 {[%emt 0:00:06]} Nxc5 {[%emt 0:00:21]} 44. dxc5 {[%emt 0:00:05]} Kd5 {[%emt 0:00:01]} 45. Kd3 {[%emt 0:00:09]} Kxc5 {[%emt 0:00:06]} 46. Kc3 {[%emt 0:00:17]} g5 {[%emt 0:00:22]} 47. Nd4 {[%emt 0:01:07]} h6 {[%emt 0:00:26]} 48. g4 {[%emt 0:00:21]} Kd5 {[%emt 0:00:13]} 49. Nf5 {[%emt 0:00:06]} 1-0

[Event "DVM U14 2021"]
[Site "Willingen"]
[Date "2022.08.14"]
[Round "3"]
[White "Kiefhaber, Tobias"]
[Black "Wagner, Anton"]
[Result "1/2-1/2"]
[ECO "D03"]
[WhiteElo "1581"]
[BlackElo "1479"]
[Annotator "NA RC"]
[PlyCount "71"]
[EventDate "2022.08.12"]
[EventType "team-tourn"]
[EventRounds "7"]
[EventCountry "GER"]
[SourceTitle "playchess.com"]
[Source "ChessBase"]
[SourceQuality "1"]
[TimeControl "40/5400+30:1800+30"]

1. Nf3 {[%emt 0:00:04]} Nf6 {[%emt 0:00:06]} 2. d4 {[%emt 0:00:15]} d5 {[%emt 0:00:05]} 3. Bg5 {[%emt 0:00:48]} e6 {[%emt 0:00:42]} 4. e3 {[%emt 0:00:25]} Be7 {[%emt 0:00:10]} 5. Bd3 {[%emt 0:00:21]} b6 {[%emt 0:00:47]} 6. O-O {[%emt 0:00:14]} Bb7 {[%emt 0:00:03]} 7. Nbd2 {[%emt 0:01:00]} Nbd7 {[%emt 0:00:19]} 8. c4 {[%emt 0:01:00]} c5 {[%emt 0:03:15]} 9. b3 {[%emt 0:05:08]} O-O {[%emt 0:00:57]} 10. Rc1 {[%emt 0:00:48]} Rc8 {[%emt 0:07:00]} 11. Qe2 {[%emt 0:02:29]} cxd4 {[%emt 0:11:06]} 12. exd4 {[%emt 0:05:40]} dxc4 {[%emt 0:19:00]} 13. Nxc4 {[%emt 0:02:11]} Nd5 {[%emt 0:06:34]} 14. Qe4 {[%emt 0:08:44]} g6 {[%emt 0:03:39]} 15. Qh4 {[%emt 0:07:13]} Bxg5 {[%emt 0:12:30]} 16. Nxg5 {[%emt 0:02:09]} N7f6 {[%emt 0:05:00]} 17. Ne5 {[%emt 0:03:10]} Kg7 {[%emt 0:04:52]} 18. Rc4 {[%emt 0:19:32]} Ba6 {[%emt 0:07:05]} 19. Rxc8 {[%emt 0:04:59]} Qxc8 {[%emt 0:00:28]} 20. Qg3 {[%emt 0:03:12]} Bxd3 {[%emt 0:02:03]} 21. Qxd3 {[%emt 0:02:17]} Qc3 {[%emt 0:05:08]} 22. Rd1 {[%emt 0:05:58]} Qxd3 {[%emt 0:00:36]} 23. Nxd3 {[%emt 0:00:35]} h6 {[%emt 0:01:02]} 24. Nf3 {[%emt 0:00:21]} Rc8 {[%emt 0:00:13]} 25. Rc1 {[%emt 0:01:18]} Rxc1+ {[%emt 0:02:44]} 26. Nxc1 {[%emt 0:00:03]} Nb4 {[%emt 0:00:13]} 27. Kf1 {[%emt 0:00:43]} Ne4 {[%emt 0:00:32]} 28. Ke1 {[%emt 0:01:23]} Kf6 {[%emt 0:01:51]} 29. g4 {[%emt 0:01:36]} Ng5 {[%emt 0:01:17]} 30. Ne5 {[%emt 0:03:45]} Nc2+ {[%emt 0:00:37]} 31. Kd2 {[%emt 0:01:09]} Nxd4 {[%emt 0:00:11]} 32. f4 {[%emt 0:01:11]} Ngf3+ {[%emt 0:00:41]} 33. Ke3 {[%emt 0:00:23]} Nxe5 {[%emt 0:00:12]} 34. fxe5+ {[%emt 0:00:14]} Kxe5 {[%emt 0:00:07]} 35. Nd3+ {[%emt 0:00:10]} Kd5 {[%emt 0:00:20]} 36. Nb4+ {[%emt 0:00:15]} 1/2-1/2

[Event "DVM U14 2021"]
[Site "Willingen"]
[Date "2022.08.14"]
[Round "3"]
[White "Sökler, Jakob"]
[Black "Spranger, Tobias"]
[Result "1-0"]
[ECO "A06"]
[WhiteElo "1571"]
[BlackElo "1522"]
[Annotator "NA RC"]
[PlyCount "97"]
[EventDate "2022.08.12"]
[EventType "team-tourn"]
[EventRounds "7"]
[EventCountry "GER"]
[SourceTitle "playchess.com"]
[Source "ChessBase"]
[SourceQuality "1"]
[TimeControl "40/5400+30:1800+30"]

1. Nf3 {[%emt 0:00:04]} d5 {[%emt 0:00:04]} 2. e3 {[%emt 0:00:06]} c5 {[%emt 0:00:05]} 3. b3 {[%emt 0:00:07]} Nc6 {[%emt 0:00:05]} 4. Bb2 {[%emt 0:00:18]} Nf6 {[%emt 0:00:05]} 5. Bb5 {[%emt 0:00:25]} e6 {[%emt 0:01:00]} 6. O-O {[%emt 0:03:21]} Be7 {[%emt 0:03:02]} 7. Ne5 {[%emt 0:04:04]} Qc7 {[%emt 0:00:40]} 8. Bxc6+ {[%emt 0:00:39]} bxc6 {[%emt 0:00:15]} 9. f4 {[%emt 0:01:12]} Ba6 {[%emt 0:02:44]} 10. c4 {[%emt 0:02:28]} Rb8 {[%emt 0:05:19]} 11. Qc2 {[%emt 0:04:02]} O-O {[%emt 0:00:41]} 12. Nc3 {[%emt 0:01:19]} Rfd8 {[%emt 0:03:11]} 13. Na4 {[%emt 0:02:05]} d4 {[%emt 0:04:23]} 14. Ba3 {[%emt 0:02:10]} dxe3 {[%emt 0:12:01]} 15. dxe3 {[%emt 0:00:47]} Bd6 {[%emt 0:03:17]} 16. Nd3 {[%emt 0:05:49]} e5 {[%emt 0:03:18]} 17. Bxc5 {[%emt 0:10:59]} exf4 {[%emt 0:01:59]} 18. exf4 {[%emt 0:04:46]} Ne4 {[%emt 0:01:06]} 19. Bxd6 {[%emt 0:05:33]} Qxd6 {[%emt 0:01:59]} 20. Rad1 {[%emt 0:03:05]} Qc7 {[%emt 0:31:08]} 21. Ndc5 {[%emt 0:02:57]} Nxc5 {[%emt 0:00:28]} 22. Nxc5 {[%emt 0:00:12]} Qb6 {[%emt 0:05:17]} 23. Qf2 {[%emt 0:01:48]} Re8 {[%emt 0:03:48]} 24. Nd7 {[%emt 0:03:30]} Qxf2+ {[%emt 0:00:11]} 25. Rxf2 {[%emt 0:01:28]} Rb7 {[%emt 0:01:49]} 26. Rfd2 {[%emt 0:02:07]} Rc7 {[%emt 0:01:58]} 27. Ne5 {[%emt 0:05:24]} Bc8 {[%emt 0:01:30]} 28. Rd6 {[%emt 0:05:59]} g6 {[%emt 0:06:09]} 29. Rxc6 {[%emt 0:02:42]} Rce7 {[%emt 0:01:21]} 30. Rcd6 {[%emt 0:01:44]} Bb7 {[%emt 0:02:22]} 31. Rd7 {[%emt 0:03:19]} f6 {[%emt 0:01:19]} 32. Ng4 {[%emt 0:01:18]} Kf7 {[%emt 0:01:02]} 33. R1d6 {[%emt 0:03:26]} h5 {[%emt 0:02:21]} 34. Nxf6 {[%emt 0:02:16]} Rxd7 {[%emt 0:00:26]} 35. Rxd7+ {[%emt 0:00:30]} Re7 {[%emt 0:00:02]} 36. Rxe7+ {[%emt 0:00:13]} Kxe7 {[%emt 0:00:05]} 37. Nd5+ {[%emt 0:00:13]} Bxd5 {[%emt 0:00:09]} 38. cxd5 {[%emt 0:00:07]} Kd6 {[%emt 0:00:04]} 39. Kf2 {[%emt 0:00:47]} Kxd5 {[%emt 0:00:10]} 40. Ke3 {[%emt 0:00:17]} Kc5 {[%emt 0:00:27]} 41. a3 {[%emt 0:30:13]} a6 {[%emt 0:32:05]} 42. Ke4 {[%emt 0:01:02]} Kd6 {[%emt 0:00:31]} 43. f5 {[%emt 0:03:32]} g5 {[%emt 0:00:08]} 44. h3 {[%emt 0:01:00]} h4 {[%emt 0:00:14]} 45. b4 {[%emt 0:00:22]} Kc6 {[%emt 0:00:50]} 46. Ke5 {[%emt 0:00:21]} Kb5 {[%emt 0:00:06]} 47. f6 {[%emt 0:00:07]} Ka4 {[%emt 0:00:06]} 48. f7 {[%emt 0:00:09]} Kxa3 {[%emt 0:00:03]} 49. f8=Q {[%emt 0:00:12]} 1-0

[Event "DVM U14 2021"]
[Site "Willingen"]
[Date "2022.08.14"]
[Round "3"]
[White "Goldinov, Daniel"]
[Black "Nitsche, Nikolai"]
[Result "1-0"]
[ECO "B06"]
[WhiteElo "1546"]
[BlackElo "1764"]
[Annotator "NA RC"]
[PlyCount "31"]
[EventDate "2022.08.12"]
[EventType "team-tourn"]
[EventRounds "7"]
[EventCountry "GER"]
[SourceTitle "playchess.com"]
[Source "ChessBase"]
[SourceQuality "1"]
[TimeControl "40/5400+30:1800+30"]

1. e4 {[%emt 0:00:01]} g6 {[%emt 0:00:05]} 2. Bc4 {[%emt 0:00:06]} Bg7 {[%emt 0:00:12]} 3. Qf3 {[%emt 0:00:48]} e6 {[%emt 0:00:10]} 4. Ne2 {[%emt 0:00:04]} Ne7 {[%emt 0:00:07]} 5. Nbc3 {[%emt 0:00:44]} c6 {[%emt 0:01:20]} 6. d4 {[%emt 0:08:10]} d5 {[%emt 0:00:08]} 7. Bb3 {[%emt 0:02:07]} dxe4 {[%emt 0:02:02]} 8. Nxe4 {[%emt 0:10:56]} f5 {[%emt 0:12:37]} 9. Ng5 {[%emt 0:14:03]} Nd5 {[%emt 0:00:37]} 10. c4 {[%emt 0:02:42]} Nf6 {[%emt 0:00:48]} 11. Nf4 {[%emt 0:06:40]} O-O {[%emt 0:24:10]} 12. O-O {[%emt 0:01:04]} Re8 {[%emt 0:00:51]} 13. d5 {[%emt 0:16:05]} Nxd5 {[%emt 0:09:53]} 14. cxd5 {[%emt 0:03:05]} Qxg5 {[%emt 0:00:16]} 15. Nxe6 {[%emt 0:00:53]} Qe7 {[%emt 0:01:41]} 16. Nc7 {[%emt 0:03:14]} 1-0

[Event "DVM U14 2021"]
[Site "Willingen"]
[Date "2022.08.14"]
[Round "3"]
[White "Vecera, Fabio"]
[Black "Stein, Theodor"]
[Result "1/2-1/2"]
[ECO "A16"]
[WhiteElo "1527"]
[BlackElo "1510"]
[Annotator "NA RC"]
[PlyCount "55"]
[EventDate "2022.08.12"]
[EventType "team-tourn"]
[EventRounds "7"]
[EventCountry "GER"]
[SourceTitle "playchess.com"]
[Source "ChessBase"]
[SourceQuality "1"]
[TimeControl "40/5400+30:1800+30"]

1. Nf3 {[%emt 0:00:04]} d6 {[%emt 0:00:02]} 2. c4 {[%emt 0:00:04]} g6 {[%emt 0:00:50]} 3. Nc3 {[%emt 0:00:05]} Bg7 {[%emt 0:00:05]} 4. g3 {[%emt 0:00:04]} Nf6 {[%emt 0:00:11]} 5. Bg2 {[%emt 0:00:11]} O-O {[%emt 0:00:15]} 6. O-O {[%emt 0:00:26]} c6 {[%emt 0:01:27]} 7. d3 {[%emt 0:01:40]} Nbd7 {[%emt 0:02:35]} 8. Qc2 {[%emt 0:04:57]} e5 {[%emt 0:11:07]} 9. d4 {[%emt 0:12:16]} Qc7 {[%emt 0:07:35]} 10. Rd1 {[%emt 0:04:14]} exd4 {[%emt 0:01:10]} 11. Nxd4 {[%emt 0:00:15]} Nb6 {[%emt 0:02:23]} 12. b3 {[%emt 0:00:28]} Re8 {[%emt 0:07:43]} 13. Ba3 {[%emt 0:02:36]} a6 {[%emt 0:00:44]} 14. Rac1 {[%emt 0:15:43]} Be6 {[%emt 0:11:18]} 15. Nxe6 {[%emt 0:00:07]} fxe6 {[%emt 0:00:10]} 16. Bxd6 {[%emt 0:00:46]} Qf7 {[%emt 0:05:30]} 17. h3 {[%emt 0:04:06]} Rad8 {[%emt 0:08:33]} 18. Rd3 {[%emt 0:02:11]} e5 {[%emt 0:05:29]} 19. Bc5 {[%emt 0:00:36]} Nbd7 {[%emt 0:00:22]} 20. Be3 {[%emt 0:04:20]} Nf8 {[%emt 0:02:41]} 21. Rcd1 {[%emt 0:00:27]} Rxd3 {[%emt 0:03:56]} 22. Qxd3 {[%emt 0:02:34]} Ne6 {[%emt 0:01:49]} 23. Qc2 {[%emt 0:03:48]} Rf8 {[%emt 0:05:56]} 24. Ne4 {[%emt 0:01:05]} Nxe4 {[%emt 0:00:54]} 25. Bxe4 {[%emt 0:00:40]} Nd4 {[%emt 0:00:52]} 26. Qb2 {[%emt 0:02:51]} Qd7 {[%emt 0:02:01]} 27. Kg2 {[%emt 0:01:03]} Qf7 {[%emt 0:02:54]} 28. Rf1 {[%emt 2:39:41]} 1/2-1/2

[Event "DVM U14 2021"]
[Site "Willingen"]
[Date "2022.08.14"]
[Round "3"]
[White "Apel, Linus"]
[Black "Eichhorn, Valentin"]
[Result "1-0"]
[ECO "B48"]
[WhiteElo "1488"]
[BlackElo "1506"]
[Annotator "NA RC"]
[PlyCount "69"]
[EventDate "2022.08.12"]
[EventType "team-tourn"]
[EventRounds "7"]
[EventCountry "GER"]
[SourceTitle "playchess.com"]
[Source "ChessBase"]
[SourceQuality "1"]
[TimeControl "40/5400+30:1800+30"]

1. e4 {[%emt 0:00:13]} c5 {[%emt 0:00:00]} 2. Nf3 {[%emt 0:00:25]} e6 {[%emt 0:00:36]} 3. d4 {[%emt 0:00:21]} cxd4 {[%emt 0:00:07]} 4. Nxd4 {[%emt 0:00:33]} Nc6 {[%emt 0:01:04]} 5. Nc3 {[%emt 0:00:25]} Qc7 {[%emt 0:01:29]} 6. Be3 {[%emt 0:00:21]} a6 {[%emt 0:01:11]} 7. f4 {[%emt 0:01:27]} d6 {[%emt 0:07:41]} 8. g4 {[%emt 0:06:22]} Be7 {[%emt 0:03:36]} 9. h4 {[%emt 0:07:48]} b5 {[%emt 0:01:39]} 10. Bg2 {[%emt 0:00:54]} Bb7 {[%emt 0:03:00]} 11. Qd2 {[%emt 0:11:44]} Nxd4 {[%emt 0:01:06]} 12. Bxd4 {[%emt 0:03:22]} e5 {[%emt 0:03:36]} 13. Be3 {[%emt 0:03:34]} Nf6 {[%emt 0:01:34]} 14. g5 {[%emt 0:05:59]} Nd7 {[%emt 0:02:03]} 15. f5 {[%emt 0:01:12]} Nb6 {[%emt 0:01:51]} 16. Bxb6 {[%emt 0:00:24]} Qxb6 {[%emt 0:00:31]} 17. O-O-O {[%emt 0:08:24]} Rc8 {[%emt 0:03:22]} 18. Rhf1 {[%emt 0:09:38]} Qc5 {[%emt 0:07:48]} 19. Kb1 {[%emt 0:08:36]} b4 {[%emt 0:01:01]} 20. Ne2 {[%emt 0:04:39]} a5 {[%emt 0:08:07]} 21. f6 {[%emt 0:00:51]} gxf6 {[%emt 0:00:14]} 22. gxf6 {[%emt 0:00:13]} Bf8 {[%emt 0:02:42]} 23. Ng3 {[%emt 0:08:25]} Ba6 {[%emt 0:02:40]} 24. Rfe1 {[%emt 0:01:55]} a4 {[%emt 0:03:09]} 25. Nf5 {[%emt 0:01:13]} Rc6 {[%emt 0:05:10]} 26. Re3 {[%emt 0:01:54]} Rg8 {[%emt 0:04:36]} 27. h5 {[%emt 0:01:15]} Bc8 {[%emt 0:09:12]} 28. Rd3 {[%emt 0:02:16]} Bxf5 {[%emt 0:00:08]} 29. exf5 {[%emt 0:00:03]} Rc7 {[%emt 0:00:34]} 30. Rd5 {[%emt 0:02:35]} Qb6 {[%emt 0:00:27]} 31. Rxe5+ {[%emt 0:00:27]} Kd7 {[%emt 0:01:26]} 32. Qd5 {[%emt 0:00:25]} Kc8 {[%emt 0:00:27]} 33. Re8+ {[%emt 0:00:08]} Kd7 {[%emt 0:00:07]} 34. Qxf7+ {[%emt 0:00:14]} Be7 35. Qxe7# {[%emt 0:00:30]} 1-0

[Event "DVM U14 2021"]
[Site "Willingen"]
[Date "2022.08.14"]
[Round "3"]
[White "Römer, Uri"]
[Black "Gold, Jan Christian"]
[Result "1-0"]
[ECO "C09"]
[WhiteElo "1485"]
[BlackElo "1638"]
[Annotator "NA RC"]
[PlyCount "51"]
[EventDate "2022.08.12"]
[EventType "team-tourn"]
[EventRounds "7"]
[EventCountry "GER"]
[SourceTitle "playchess.com"]
[Source "ChessBase"]
[SourceQuality "1"]
[TimeControl "40/5400+30:1800+30"]

1. e4 {[%emt 0:00:01]} e6 {[%emt 0:00:00]} 2. d4 {[%emt 0:00:01]} d5 {[%emt 0:00:07]} 3. Nd2 {[%emt 0:00:15]} c5 {[%emt 0:00:16]} 4. exd5 {[%emt 0:00:02]} exd5 {[%emt 0:00:56]} 5. Ngf3 {[%emt 0:00:03]} Nc6 {[%emt 0:02:24]} 6. Nb3 {[%emt 0:04:49]} Bg4 {[%emt 0:03:24]} 7. dxc5 {[%emt 0:00:49]} Bxc5 {[%emt 0:06:58]} 8. Nxc5 {[%emt 0:00:10]} Qa5+ {[%emt 0:00:57]} 9. Qd2 {[%emt 0:00:08]} Qxc5 {[%emt 0:01:00]} 10. Qe3+ {[%emt 0:00:25]} Qxe3+ {[%emt 0:01:24]} 11. Bxe3 {[%emt 0:04:17]} Nf6 {[%emt 0:03:29]} 12. Nd4 {[%emt 0:05:53]} O-O {[%emt 0:17:17]} 13. f3 {[%emt 0:03:21]} Rfe8 {[%emt 0:05:11]} 14. Kf2 {[%emt 0:40:37]} Rac8 {[%emt 0:06:54]} 15. c3 {[%emt 0:04:22]} Ne5 {[%emt 0:09:18]} 16. Nb5 {[%emt 0:11:13]} Rcd8 {[%emt 0:09:03]} 17. Bc5 {[%emt 0:09:01]} Ned7 {[%emt 0:08:03]} 18. Nc7 {[%emt 0:01:12]} Re5 {[%emt 0:02:12]} 19. Bd4 {[%emt 0:04:17]} Rf5 {[%emt 0:03:49]} 20. Bd3 {[%emt 0:00:02]} Ne4+ {[%emt 0:02:53]} 21. Kg1 {[%emt 0:01:00]} Bxf3 {[%emt 0:01:01]} 22. gxf3 {[%emt 0:00:01]} Rxf3 {[%emt 0:04:09]} 23. Rd1 {[%emt 0:01:54]} Rc8 {[%emt 0:01:31]} 24. Nxd5 {[%emt 0:00:02]} Ndc5 {[%emt 0:01:38]} 25. Bxe4 {[%emt 0:00:02]} Nxe4 {[%emt 0:00:20]} 26. Ne7+ 1-0

[Event "DVM U14 2021"]
[Site "Willingen"]
[Date "2022.08.14"]
[Round "3"]
[White "Borgert, Alexander"]
[Black "Wegener, Moritz"]
[Result "1-0"]
[ECO "E90"]
[WhiteElo "1477"]
[BlackElo "1202"]
[Annotator "NA RC"]
[PlyCount "71"]
[EventDate "2022.08.12"]
[EventType "team-tourn"]
[EventRounds "7"]
[EventCountry "GER"]
[SourceTitle "playchess.com"]
[Source "ChessBase"]
[SourceQuality "1"]
[TimeControl "40/5400+30:1800+30"]

1. d4 {[%emt 0:00:03]} c5 {[%emt 0:00:34]} 2. d5 {[%emt 0:00:06]} Nf6 {[%emt 0:01:09]} 3. c4 {[%emt 0:00:05]} d6 {[%emt 0:01:13]} 4. Nc3 {[%emt 0:00:07]} g6 {[%emt 0:00:51]} 5. Nf3 {[%emt 0:00:07]} Bg7 {[%emt 0:00:31]} 6. e4 {[%emt 0:00:07]} O-O {[%emt 0:01:08]} 7. h3 {[%emt 0:00:27]} e6 {[%emt 0:01:50]} 8. Bf4 {[%emt 0:02:20]} exd5 {[%emt 0:07:41]} 9. cxd5 {[%emt 0:00:12]} Re8 {[%emt 0:01:11]} 10. Bb5 {[%emt 0:00:08]} Bd7 {[%emt 0:09:28]} 11. Bd3 {[%emt 0:01:02]} Qc7 {[%emt 0:05:10]} 12. O-O {[%emt 0:00:52]} c4 {[%emt 0:03:59]} 13. Bc2 {[%emt 0:00:15]} Na6 {[%emt 0:00:21]} 14. Re1 {[%emt 0:04:13]} Nh5 {[%emt 0:10:14]} 15. Bh2 {[%emt 0:00:28]} Nc5 {[%emt 0:03:35]} 16. g4 {[%emt 0:01:27]} Nf6 {[%emt 0:01:05]} 17. e5 {[%emt 0:00:10]} dxe5 {[%emt 0:01:21]} 18. Nxe5 {[%emt 0:00:26]} Qd8 {[%emt 0:08:45]} 19. Nxc4 {[%emt 0:01:27]} Rxe1+ {[%emt 0:00:42]} 20. Qxe1 {[%emt 0:00:12]} Bc8 {[%emt 0:00:50]} 21. Qe3 {[%emt 0:03:46]} b6 {[%emt 0:02:45]} 22. Nd6 {[%emt 0:01:10]} Nb7 {[%emt 0:01:50]} 23. Nxc8 {[%emt 0:10:53]} Rxc8 {[%emt 0:00:39]} 24. Rd1 {[%emt 0:02:05]} Nd6 {[%emt 0:04:39]} 25. Bb3 {[%emt 0:00:47]} Qd7 {[%emt 0:00:34]} 26. Bxd6 {[%emt 0:02:01]} Qxd6 {[%emt 0:00:17]} 27. Qg3 {[%emt 0:01:04]} Qd7 {[%emt 0:01:49]} 28. d6 {[%emt 0:01:39]} a6 {[%emt 0:00:52]} 29. g5 {[%emt 0:06:13]} Ne8 {[%emt 0:03:20]} 30. Nd5 {[%emt 0:00:23]} Rc5 {[%emt 0:05:11]} 31. Nxb6 {[%emt 0:00:10]} Qd8 {[%emt 0:00:25]} 32. d7 {[%emt 0:16:08]} Nc7 {[%emt 0:01:40]} 33. h4 {[%emt 0:02:43]} Nb5 {[%emt 0:03:27]} 34. Qf3 {[%emt 0:02:06]} Rf5 {[%emt 0:04:00]} 35. Qa8 {[%emt 0:00:06]} Qxa8 {[%emt 0:01:38]} 36. Nxa8 {[%emt 0:00:09]} 1-0

[Event "DVM U14 2021"]
[Site "Willingen"]
[Date "2022.08.14"]
[Round "3"]
[White "Freude, Paul"]
[Black "Gotfried, Elias"]
[Result "1-0"]
[ECO "C08"]
[WhiteElo "1477"]
[BlackElo "1589"]
[Annotator "NA RC"]
[PlyCount "121"]
[EventDate "2022.08.12"]
[EventType "team-tourn"]
[EventRounds "7"]
[EventCountry "GER"]
[SourceTitle "playchess.com"]
[Source "ChessBase"]
[SourceQuality "1"]
[TimeControl "40/5400+30:1800+30"]

1. e4 {[%emt 0:00:02]} e6 {[%emt 0:00:00]} 2. d4 {[%emt 0:00:03]} d5 {[%emt 0:00:00]} 3. Nd2 {[%emt 0:00:06]} c5 {[%emt 0:00:00]} 4. exd5 {[%emt 0:00:07]} exd5 {[%emt 0:00:35]} 5. Ngf3 {[%emt 0:00:23]} Nf6 {[%emt 0:00:31]} 6. Be2 {[%emt 0:00:25]} Be7 {[%emt 0:00:33]} 7. dxc5 {[%emt 0:00:12]} Bxc5 {[%emt 0:00:09]} 8. Nb3 {[%emt 0:00:51]} Bb6 {[%emt 0:00:34]} 9. Nbd4 {[%emt 0:00:37]} Nc6 {[%emt 0:01:05]} 10. h3 {[%emt 0:01:14]} h6 {[%emt 0:00:16]} 11. Be3 {[%emt 0:04:07]} Ne4 {[%emt 0:00:58]} 12. O-O {[%emt 0:14:02]} Nxd4 {[%emt 0:01:16]} 13. Bxd4 {[%emt 0:00:13]} Bxd4 {[%emt 0:00:41]} 14. Qxd4 {[%emt 0:01:13]} O-O {[%emt 0:00:29]} 15. Rad1 {[%emt 0:00:50]} Be6 {[%emt 0:02:25]} 16. Qb4 {[%emt 0:09:40]} Qc7 {[%emt 0:02:36]} 17. Nd4 {[%emt 0:03:41]} a5 {[%emt 0:01:57]} 18. Qb3 {[%emt 0:02:01]} Rfc8 {[%emt 0:02:35]} 19. a3 {[%emt 0:06:03]} Nc5 {[%emt 0:01:50]} 20. Qe3 {[%emt 0:03:01]} Ne4 {[%emt 0:03:02]} 21. Bf3 {[%emt 0:03:55]} Qe5 {[%emt 0:02:54]} 22. Rfe1 {[%emt 0:01:26]} f5 {[%emt 0:04:26]} 23. Bh5 {[%emt 0:00:52]} f4 {[%emt 0:00:38]} 24. Qf3 {[%emt 0:09:06]} Rf8 {[%emt 0:01:15]} 25. Bg6 {[%emt 0:13:30]} Bf7 {[%emt 0:00:45]} 26. Bxe4 {[%emt 0:00:41]} dxe4 {[%emt 0:00:25]} 27. Rxe4 {[%emt 0:00:33]} Qc5 {[%emt 0:02:20]} 28. Rxf4 {[%emt 0:08:29]} Qg5 {[%emt 0:02:19]} 29. Rg4 {[%emt 0:08:35]} Bh5 {[%emt 0:00:41]} 30. Qb3+ {[%emt 0:00:43]} Bf7 {[%emt 0:02:24]} 31. Qxb7 {[%emt 0:00:23]} Qf6 {[%emt 0:17:52]} 32. Rg3 {[%emt 0:01:08]} Rad8 {[%emt 0:04:09]} 33. Qf3 {[%emt 0:03:33]} Qe5 {[%emt 0:03:55]} 34. Qe3 {[%emt 0:00:59]} Qh5 {[%emt 0:01:59]} 35. Rd2 {[%emt 0:00:43]} Rfe8 {[%emt 0:01:19]} 36. Qf3 {[%emt 0:00:43]} Qe5 {[%emt 0:05:32]} 37. Qe3 {[%emt 0:00:50]} Qf6 {[%emt 0:03:21]} 38. Qc3 {[%emt 0:01:30]} Qe5 {[%emt 0:00:47]} 39. Re3 {[%emt 0:00:33]} Qb8 {[%emt 0:00:20]} 40. Rxe8+ {[%emt 0:00:04]} Rxe8 {[%emt 0:01:02]} 41. Re2 {[%emt 0:30:46]} Rc8 {[%emt 0:30:47]} 42. Nc6 {[%emt 0:01:07]} Qb5 {[%emt 0:01:07]} 43. Ne7+ {[%emt 0:00:54]} Kh7 {[%emt 0:00:31]} 44. Qxc8 {[%emt 0:00:30]} Qxe2 {[%emt 0:00:09]} 45. Qf5+ {[%emt 0:00:22]} Kh8 {[%emt 0:00:13]} 46. Qxf7 {[%emt 0:01:35]} Qd1+ {[%emt 0:00:16]} 47. Kh2 {[%emt 0:00:13]} Qd8 {[%emt 0:00:16]} 48. Qg8+ {[%emt 0:00:04]} Qxg8 {[%emt 0:00:10]} 49. Nxg8 {[%emt 0:00:03]} Kxg8 {[%emt 0:00:07]} 50. Kg3 {[%emt 0:00:05]} Kf7 {[%emt 0:00:05]} 51. Kf4 {[%emt 0:00:11]} Ke6 {[%emt 0:00:24]} 52. c4 {[%emt 0:00:06]} Kd6 {[%emt 0:00:06]} 53. b4 {[%emt 0:00:20]} g5+ {[%emt 0:00:08]} 54. Kf5 {[%emt 0:00:05]} a4 {[%emt 0:00:15]} 55. b5 {[%emt 0:00:05]} Kc5 {[%emt 0:00:11]} 56. Ke5 {[%emt 0:00:16]} Kxc4 {[%emt 0:00:05]} 57. b6 {[%emt 0:00:04]} Kb3 {[%emt 0:00:07]} 58. b7 {[%emt 0:00:03]} Kxa3 {[%emt 0:00:09]} 59. b8=Q {[%emt 0:00:13]} Ka2 {[%emt 0:00:07]} 60. Kd4 {[%emt 0:00:06]} g4 {[%emt 0:00:08]} 61. Ke4 {[%emt 0:03:55]} 1-0